bitfinex/quotes_SOLUSD_20260305
["timestamp","ask_amount","ask_price","bid_price","bid_amount"]
[1772716862673,10.77283863,91.49,91.442,0.94905793]
[1772716863380,10.93027577,91.489,91.444,0.94905793]
[1772716863972,38.25596519,91.489,91.444,0.94905793]
[1772716864186,10.77283863,91.48,91.434,0.94905793]
[1772716864483,0.28432314,91.488,91.434,0.94905793]
[1772716864484,10.77283863,91.47,91.434,0.94905793]
[1772716864672,10.77283863,91.48,91.437,10.93637421]
[1772716864880,0.28432314,91.488,91.442,0.94905793]
[1772716865382,10.77283863,91.47,91.422,0.94905793]
[1772716865687,10.77283863,91.47,91.431,0.94905793]
[1772716865983,10.77283863,91.47,91.433,10.93691501]
[1772716866183,10.77283863,91.46,91.425,10.9379035]
[1772716866393,10.77283863,91.46,91.422,0.94905793]
[1772716866561,10.77283863,91.46,91.419,10.93858036]
[1772716866972,10.77283863,91.46,91.414,10.93921408]
[1772716867192,10.77283863,91.45,91.414,10.93921408]
[1772716867386,0.28432314,91.458,91.414,10.93921408]
[1772716867574,0.28432314,91.458,91.415,0.94905793]
[1772716867885,96.66622423,91.742,91.415,0.94905793]
[1772716867886,43.70890595,91.515,91.415,0.94905793]
[1772716868085,0.14216157,91.489,91.415,0.94905793]
[1772716868282,10.77283863,91.5,91.416,0.94905793]
[1772716868488,0.28432314,91.499,91.419,0.94905793]
[1772716869286,0.14216157,91.499,91.419,0.94905793]
[1772716869783,38.53610731,91.499,91.425,0.94905793]
[1772716870760,38.53610731,91.499,91.426,38.28232668]
[1772716870962,38.53610731,91.499,91.427,0.94905793]
[1772716871565,10.77283863,91.49,91.427,0.94905793]
[1772716872168,10.92908119,91.499,91.43,0.94905793]
[1772716872371,10.92908119,91.499,91.431,1.23338107]
[1772716872684,10.92908119,91.499,91.433,0.28432314]
[1772716872868,27.32270298,91.499,91.437,0.94905793]
[1772716873266,0.28432314,91.507,91.437,0.94905793]
[1772716874389,10.92800629,91.508,91.438,0.94905793]
[1772716874701,10.92800629,91.508,91.44,0.94905793]
[1772716874998,10.77283863,91.5,91.443,0.94905793]
[1772716875363,0.14216157,91.509,91.443,0.94905793]
[1772716875589,0.14216157,91.517,91.444,0.94905793]
[1772716875773,10.77283863,91.53,91.444,0.94905793]
[1772716875774,0.14216157,91.529,91.445,0.94905793]
[1772716875974,38.24342485,91.519,91.445,0.94905793]
[1772716876498,10.77283863,91.51,91.445,0.94905793]
[1772716877073,0.28432314,91.508,91.447,0.94905793]
[1772716877394,10.77283863,91.5,91.447,0.94905793]
[1772716877598,10.92788687,91.509,91.447,0.94905793]
[1772716880196,0.02002479,91.512,91.449,0.94905793]
[1772716880901,38.52816587,91.518,91.449,0.94905793]
[1772716881104,38.52816587,91.518,91.451,0.94905793]
[1772716881105,10.92681221,91.518,91.451,0.94905793]
[1772716881402,10.92681221,91.518,91.454,0.94905793]
[1772716881610,10.92681221,91.518,91.455,0.94905793]
[1772716882485,0.02182289,91.526,91.457,0.94905793]
[1772716883579,10.92561839,91.528,91.458,0.94905793]
[1772716883782,10.92561839,91.528,91.461,0.94905793]
[1772716884088,10.92561839,91.528,91.464,0.94905793]
[1772716884281,10.92561839,91.528,91.465,0.94905793]
[1772716884583,10.77283863,91.52,91.467,0.94905793]
[1772716884801,0.02356637,91.519,91.467,0.94905793]
[1772716885715,0.02441807,91.509,91.467,0.94905793]
[1772716886185,0.02527799,91.518,91.467,0.94905793]
[1772716886384,0.02527799,91.518,91.468,10.93278523]
[1772716886385,38.24384273,91.518,91.468,10.93278523]
[1772716886702,0.02527799,91.516,91.469,0.94905793]
[1772716887284,0.02612602,91.509,91.468,10.93278523]
[1772716887484,0.02612602,91.509,91.435,3.97815716]
[1772716887485,0.02696315,91.489,91.448,0.94905793]
[1772716888778,10.93027577,91.489,91.448,0.94905793]
[1772716888996,0.02779088,91.488,91.449,10.93505669]
[1772716889291,0.02860888,91.479,91.438,0.94905793]
[1772716889589,0.02860888,91.479,91.435,10.93663146]
[1772716890190,0.02860888,91.469,91.435,10.93663146]
[1772716890909,10.77283863,91.46,91.419,0.94905793]
[1772716891113,0.02942295,91.459,91.419,0.94905793]
[1772716891406,0.02942295,91.459,91.411,10.93960245]
[1772716891407,0.03022662,91.449,91.411,0.94905793]
[1772716891598,0.03022662,91.439,91.404,0.69339416]
[1772716891990,0.03022662,91.439,91.407,10.94007909]
[1772716892504,0.03022662,91.439,91.404,0.69339416]
[1772716892908,0.03102278,91.438,91.404,0.69339416]
[1772716894194,0.03102278,91.438,91.405,10.94032055]
[1772716894788,10.93575795,91.444,91.41,1.04905793]
[1772716895293,0.03258152,91.455,91.412,0.94905793]
[1772716895700,0.28432314,91.457,91.412,0.94905793]
[1772716896823,0.28432314,91.455,91.414,0.94905793]
[1772716899737,0.03632794,91.449,91.41,0.1]
[1772716900020,0.03632794,91.449,91.412,0.94905793]
[1772716902015,0.03776759,91.448,91.412,0.94905793]
[1772716902396,0.03776759,91.448,91.413,10.93936311]
[1772716902594,10.93505669,91.449,91.414,0.94905793]
[1772716903017,10.93232141,91.472,91.414,0.94905793]
[1772716903410,0.0391569,91.47,91.414,0.94905793]
[1772716903617,0.0391569,91.47,91.41,0.1]
[1772716903618,0.0391569,91.449,91.41,0.1]
[1772716903797,0.0391569,91.449,91.411,10.93960245]
[1772716904120,0.0391569,91.448,91.411,0.94905793]
[1772716904318,10.93410017,91.457,91.411,0.94905793]
[1772716905417,10.93410017,91.457,91.41,0.1]
[1772716905418,0.04051948,91.444,91.41,1.04905793]
[1772716905801,0.28432314,91.456,91.41,1.04905793]
[1772716906003,0.04051948,91.455,91.41,1.04905793]
[1772716906615,10.93433929,91.455,91.412,0.94905793]
[1772716906913,0.04120193,91.487,91.413,1.23338107]
[1772716907123,0.04120193,91.487,91.415,0.94905793]
[1772716908227,10.93027577,91.489,91.415,0.94905793]
[1772716908727,0.04185748,91.496,91.42,0.94905793]
[1772716908907,0.04185748,91.496,91.421,0.94905793]
[1772716909216,0.04185748,91.496,91.423,1.23338107]
[1772716909419,0.04185748,91.496,91.424,0.28432314]
[1772716909615,0.04185748,91.496,91.425,0.94905793]
[1772716911924,0.04508298,91.495,91.427,0.94905793]
[1772716912105,10.92932008,91.497,91.428,0.94905793]
[1772716912302,10.92788687,91.509,91.431,0.94905793]
[1772716912508,10.92788687,91.509,91.433,0.94905793]
[1772716912701,10.92788687,91.509,91.434,1.23338107]
[1772716912917,10.92788687,91.509,91.435,0.94905793]
[1772716913233,10.92681221,91.518,91.436,0.94905793]
[1772716913532,10.92681221,91.518,91.438,0.94905793]
[1772716913713,10.92681221,91.518,91.44,0.94905793]
[1772716913916,0.04632046,91.516,91.442,0.94905793]
[1772716914224,0.04632046,91.516,91.444,0.94905793]
[1772716914433,0.04692991,91.528,91.447,0.94905793]
[1772716914607,0.04692991,91.528,91.448,0.94905793]
[1772716914808,0.04692991,91.528,91.449,0.28432314]
[1772716915017,0.04692991,91.528,91.451,0.94905793]
[1772716915224,0.04692991,91.528,91.452,1.0912195]
[1772716915527,0.04752887,91.527,91.455,0.94905793]
[1772716915910,0.04752887,91.509,91.455,0.94905793]
[1772716916929,0.28432314,91.508,91.456,10.93421973]
[1772716917129,0.04812941,91.507,91.457,0.94905793]
[1772716919037,0.04929578,91.499,91.45,11.8839195]
[1772716919420,0.04929578,91.499,91.45,0.94905793]
[1772716919833,0.04987416,91.505,91.452,0.94905793]
[1772716921034,10.92836457,91.505,91.454,0.94905793]
[1772716922121,38.24927599,91.505,91.454,0.94905793]
[1772716922321,0.28432314,91.504,91.454,0.94905793]
[1772716922741,0.33588993,91.504,91.454,0.94905793]
[1772716923532,0.28432314,91.502,91.456,0.94905793]
[1772716924830,0.28432314,91.5,91.458,0.94905793]
[1772716925742,10.9288423,91.501,91.458,0.94905793]
[1772716926446,10.98255117,91.501,91.458,0.94905793]
[1772716927126,27.37581463,91.501,91.459,10.93386107]
[1772716927329,0.05422568,91.499,91.46,0.94905793]
[1772716928824,0.28432314,91.5,91.46,0.94905793]
[1772716929133,10.92549902,91.529,91.463,0.94905793]
[1772716929447,10.92549902,91.529,91.465,0.94905793]
[1772716930249,0.05695097,91.528,91.465,0.94905793]
[1772716930545,0.05695097,91.527,91.465,0.94905793]
[1772716930949,0.34127411,91.528,91.465,0.94905793]
[1772716931244,0.05695097,91.518,91.467,0.94905793]
[1772716932253,38.24342485,91.519,91.467,0.94905793]
[1772716932454,0.05790997,91.518,91.467,0.94905793]
[1772716932747,0.05790997,91.499,91.457,0.94905793]
[1772716933343,0.05790997,91.499,91.447,0.94905793]
[1772716933550,0.05839062,91.489,91.447,0.94905793]
[1772716933757,0.05839062,91.488,91.434,0.94905793]
[1772716933959,0.05839062,91.469,91.412,0.94905793]
[1772716934147,0.05839062,91.468,91.412,0.94905793]
[1772716934349,3.69383402,91.492,91.412,0.94905793]
[1772716934350,0.05773686,91.478,91.412,0.94905793]
[1772716934958,5.10772154,91.49,91.412,0.94905793]
[1772716935159,38.31304041,91.489,91.415,0.94905793]
[1772716935348,0.05707522,91.488,91.415,0.94905793]
[1772716935549,0.05707522,91.479,91.415,0.94905793]
[1772716935862,0.05707522,91.469,91.415,0.94905793]
[1772716936261,0.28432314,91.488,91.415,0.94905793]
[1772716936761,38.25596519,91.489,91.415,0.28432314]
[1772716937063,38.25596519,91.489,91.416,0.94905793]
[1772716937247,27.32568942,91.489,91.419,0.94905793]
[1772716937555,27.32568942,91.489,91.421,0.94905793]
[1772716937750,27.32568942,91.489,91.422,1.23338107]
[1772716937955,10.92920063,91.498,91.424,1.0912195]
[1772716938150,38.25220222,91.498,91.425,0.94905793]
[1772716938356,0.05968906,91.497,91.425,0.94905793]
[1772716938563,0.05968906,91.496,91.425,0.94905793]
[1772716939163,0.28432314,91.495,91.427,0.95221016]
[1772716939467,0.28432314,91.495,91.428,0.95221016]
[1772716940568,0.05992826,91.492,91.43,0.95221016]
[1772716941253,38.25387456,91.494,91.432,1.09437173]
[1772716941445,27.32419612,91.494,91.434,38.27897718]
[1772716941669,27.32419612,91.494,91.435,0.95221016]
[1772716941866,0.06038467,91.493,91.435,0.95221016]
[1772716942270,0.06083689,91.479,91.435,0.95221016]
[1772716942452,0.06083689,91.478,91.435,0.95221016]
[1772716943065,0.06083689,91.469,91.435,0.95221016]
[1772716943569,0.06128404,91.478,91.435,0.95221016]
[1772716944173,0.06128404,91.477,91.437,0.95221016]
[1772716945857,0.06217038,91.475,91.437,0.95221016]
[1772716946780,38.26098363,91.477,91.439,0.95221016]
[1772716947561,10.93051471,91.487,91.439,0.95221016]
[1772716947967,0.06378207,91.492,91.441,0.95221016]
[1772716948276,0.06615809,91.496,91.441,0.95221016]
[1772716949361,10.81877663,91.48,91.431,0.94905793]
[1772716949561,3.69383402,91.495,91.431,0.94905793]
[1772716949562,0.06654291,91.469,91.431,0.94905793]
[1772716949981,38.33087289,91.469,91.431,0.94905793]
[1772716950380,0.06692526,91.468,91.431,0.94905793]
[1772716951166,0.89321955,91.459,91.41,0.1]
[1772716952172,0.89321955,91.457,91.41,0.1]
[1772716952765,10.93398062,91.458,91.41,0.1]
[1772716953176,0.89321955,91.457,91.411,0.92506831]
[1772716954168,38.26893218,91.458,91.413,0.92506831]
[1772716954169,0.89321955,91.455,91.413,0.92506831]
[1772716955683,10.93421973,91.456,91.413,0.92506831]
[1772716957280,0.89321955,91.455,91.415,0.92506831]
[1772716957884,0.89321955,91.449,91.415,0.92506831]
[1772716959066,0.89321955,91.449,91.41,0.1]
[1772716959487,0.89321955,91.447,91.411,0.92506831]
[1772716961786,10.93541543,91.446,91.413,0.92506831]
[1772716962174,10.93473438,91.452,91.413,0.92506831]
[1772716962371,10.93386107,91.459,91.413,0.92506831]
[1772716962699,0.89321955,91.419,91.385,0.92506831]
[1772716962869,0.89321955,91.419,91.341,30.5]
[1772716962870,0.89321955,91.41,91.375,0.92506831]
[1772716963188,0.89321955,91.409,91.375,0.92506831]
[1772716963570,10.82585989,91.4,91.375,0.92506831]
[1772716963776,10.94115844,91.398,91.364,0.92506831]
[1772716964094,10.82585989,91.42,91.364,0.92506831]
[1772716964991,10.93864513,91.419,91.366,0.92506831]
[1772716965187,38.28525797,91.419,91.366,0.92506831]
[1772716965367,0.89321955,91.418,91.366,0.92506831]
[1772716965569,0.89321955,91.399,91.366,0.92506831]
[1772716966274,0.89321955,91.399,91.327,30.5]
[1772716966275,0.89321955,91.389,91.347,0.92506831]
[1772716967088,0.89321955,91.379,91.347,0.92506831]
[1772716967790,0.89321955,91.379,91.297,87.62605126]
[1772716967791,0.89321955,91.369,91.328,0.92506831]
[1772716969674,38.30662813,91.368,91.328,0.92506831]
[1772716969882,0.9361192,91.367,91.328,0.92506831]
[1772716970394,0.9361192,91.367,91.328,11.87458205]
[1772716970800,38.30662813,91.368,91.341,0.94214449]
[1772716972394,10.94271488,91.385,91.343,0.94214449]
[1772716972598,0.9361192,91.379,91.343,0.94214449]
[1772716974891,0.9361192,91.377,91.34,0.2]
[1772716975205,38.30243603,91.378,91.342,0.94214449]
[1772716975206,9.539149,91.378,91.342,0.94214449]
[1772716976705,10.94223593,91.389,91.342,0.94214449]
[1772716977009,27.35531172,91.39,91.344,0.94214449]
[1772716977710,0.9361192,91.396,91.344,0.94214449]
[1772716979205,0.9361192,91.379,91.345,10.9475067]
[1772716980286,0.9361192,91.389,91.345,0.94214449]
[1772716980498,10.94151758,91.395,91.347,0.94214449]
[1772716980809,10.93864513,91.419,91.348,0.94214449]
[1772716981109,10.93864513,91.419,91.351,0.94214449]
[1772716981110,10.82585989,91.41,91.351,0.94214449]
[1772716981290,10.93864513,91.419,91.351,0.94214449]
[1772716981291,0.9361192,91.399,91.351,0.94214449]
[1772716982632,10.94115844,91.398,91.353,0.94214449]
[1772716983612,10.94115844,91.398,91.355,0.94214449]
[1772716984305,0.9361192,91.397,91.355,0.94214449]
[1772716985217,10.9403489,91.405,91.355,0.94214449]
[1772716985413,27.3494478,91.41,91.357,0.94214449]
[1772716985708,0.9361192,91.409,91.357,0.94214449]
[1772716987014,10.93912377,91.415,91.357,0.94214449]
[1772716987613,11.07949067,91.43,91.361,0.94214449]
[1772716987819,10.9373291,91.43,91.362,0.94214449]
[1772716988006,10.9373291,91.43,91.364,0.94214449]
[1772716988209,10.9373291,91.43,91.365,0.94214449]
[1772716988611,0.9361192,91.429,91.365,0.94214449]
[1772716989416,0.9361192,91.419,91.365,0.94214449]
[1772716990124,0.9361192,91.409,91.366,10.94499047]
[1772716990314,0.9361192,91.399,91.361,10.94558397]
[1772716990510,0.9361192,91.399,91.361,11.88772846]
[1772716990712,0.9361192,91.399,91.362,0.94214449]
[1772716991017,38.28567677,91.418,91.362,0.94214449]
[1772716991018,0.9361192,91.411,91.362,0.94214449]
[1772716991607,0.9361192,91.409,91.362,0.94214449]
[1772716992117,0.9361192,91.399,91.351,0.94214449]
[1772716993117,0.9361192,91.399,91.352,10.94666783]
[1772716993310,0.9361192,91.399,91.352,11.88881232]
[1772716993505,0.9361192,91.399,91.353,0.94214449]
[1772716994707,0.9361192,91.396,91.353,0.94214449]
[1772716994922,0.9361192,91.389,91.34,0.2]
[1772716995112,0.9361192,91.369,91.331,0.94214449]
[1772716995311,0.9361192,91.359,91.32,0.2]
[1772716995519,0.9361192,91.378,91.322,0.94214449]
[1772716996419,0.9361192,91.369,91.322,0.94214449]
[1772716997030,0.9361192,91.367,91.324,0.94214449]
[1772716997408,10.94475089,91.368,91.324,0.94214449]
[1772716997609,10.94412839,91.374,91.324,0.94214449]
[1772716997809,0.9361192,91.373,91.324,0.94214449]
[1772716998019,27.35918228,91.377,91.324,0.94214449]
[1772716998020,11.8785946,91.387,91.325,0.94214449]
[1772716998215,0.9361192,91.386,91.325,0.94214449]
[1772716998411,38.29866391,91.387,91.325,0.94214449]
[1772716999331,10.9416373,91.394,91.328,0.93114883]
[1772717000018,10.9416373,91.394,91.331,0.93114883]
[1772717001031,38.29573056,91.394,91.331,0.93114883]
[1772717001233,0.95966925,91.394,91.334,0.93114883]
[1772717001430,0.95966925,91.389,91.334,0.93114883]
[1772717001813,0.95966925,91.379,91.334,0.93114883]
[1772717002813,0.95966925,91.398,91.334,0.93114883]
[1772717003314,0.95966925,91.398,91.315,0.14216157]
[1772717003315,38.29447356,91.397,91.336,0.93114883]
[1772717005231,10.94127816,91.397,91.337,0.93114883]
[1772717005537,0.95966925,91.406,91.34,0.93114883]
[1772717005728,0.95966925,91.405,91.34,0.93114883]
[1772717006116,27.35034238,91.407,91.34,0.93114883]
[1772717006436,27.35034238,91.407,91.339,0.28432314]
[1772717006437,27.35034238,91.407,91.343,0.93114883]
[1772717007431,0.95966925,91.407,91.345,0.93114883]
[1772717008839,0.95966925,91.407,91.346,30.5]
[1772717009020,0.95966925,91.407,91.348,0.98035682]
[1772717009345,0.95966925,91.407,91.351,0.98035682]
[1772717010535,10.94020086,91.406,91.354,0.98035682]
[1772717010732,10.93876479,91.418,91.354,31.48035682]
[1772717011040,0.90367652,91.417,91.355,0.98035682]
[1772717011342,0.90367652,91.416,91.355,0.98035682]
[1772717011534,0.90367652,91.415,91.355,0.98035682]
[1772717012036,10.93876479,91.418,91.355,0.98035682]
[1772717012734,10.93876479,91.418,91.358,0.98035682]
[1772717013343,0.90367652,91.417,91.358,0.98035682]
[1772717014233,0.90367652,91.416,91.358,0.98035682]
[1772717014446,0.90367652,91.409,91.358,0.98035682]
[1772717014742,0.90367652,91.407,91.36,0.98035682]
[1772717015921,0.90367652,91.399,91.354,10.94637311]
[1772717016444,0.90367652,91.399,91.351,0.98035682]
[1772717016646,0.90367652,91.387,91.342,0.98035682]
[1772717017629,0.90367652,91.387,91.343,0.98035682]
[1772717017947,0.90367652,91.379,91.324,0.98035682]
[1772717018134,0.90367652,91.369,91.324,0.98035682]
[1772717018924,0.90367652,91.367,91.325,10.94990418]
[1772717019126,0.90367652,91.367,91.326,0.98035682]
[1772717019647,0.90367652,91.367,91.325,10.94990418]
[1772717020040,0.90367652,91.359,91.315,0.98035682]
[1772717020226,38.30662813,91.368,91.313,14.49753846]
[1772717020227,0.90367652,91.349,91.313,14.49753846]
[1772717020727,0.90367652,91.348,91.314,10.95122325]
[1772717020930,10.94726701,91.347,91.314,0.98035682]
[1772717021445,10.83742892,91.473,91.314,0.98035682]
[1772717021446,0.90367652,91.352,91.315,0.98035682]
[1772717021629,10.94463111,91.369,91.315,0.98035682]
[1772717021835,43.75601008,91.417,91.315,0.98035682]
[1772717021836,0.90367652,91.368,91.316,0.98035682]
[1772717022031,10.94413664,91.374,91.317,0.98035682]
[1772717022230,10.94413664,91.374,91.319,0.98035682]
[1772717022532,10.94413664,91.374,91.321,0.98035682]
[1772717022731,10.94294011,91.384,91.322,0.98035682]
[1772717023043,10.94294011,91.384,91.314,136.89029062]
[1772717023044,0.90367652,91.407,91.329,0.98035682]
[1772717023242,0.90367652,91.407,91.331,0.98035682]
[1772717023441,0.90367652,91.407,91.332,1.12251839]
[1772717023743,0.90367652,91.407,91.334,1.12251839]
[1772717023944,0.90367652,91.407,91.335,0.28432314]
[1772717024242,10.93996149,91.408,91.338,1.12251839]
[1772717024443,10.93996149,91.408,91.339,1.12251839]
[1772717024652,0.90367652,91.407,91.341,1.12251839]
[1772717024832,0.90367652,91.407,91.343,0.98035682]
[1772717025033,11.84387738,91.406,91.348,0.98035682]
[1772717025231,11.84387738,91.406,91.348,0.28432314]
[1772717025441,10.93954881,91.412,91.35,0.98035682]
[1772717025641,17.7508652,91.409,91.351,1.26467996]
[1772717025846,17.7508652,91.409,91.353,0.98035682]
[1772717026150,6.8109098,91.409,91.354,0.98035682]
[1772717026330,6.8109098,91.409,91.355,0.98035682]
[1772717026526,6.8109098,91.409,91.357,0.98035682]
[1772717026752,10.93996149,91.408,91.358,0.98035682]
[1772717026947,10.93996149,91.408,91.359,1.12251839]
[1772717027250,11.84363801,91.408,91.362,0.98035682]
[1772717028146,11.84363801,91.408,91.364,0.98035682]
[1772717028351,6.8109098,91.409,91.364,0.98035682]
[1772717029963,0.93537561,91.431,91.367,1.22228609]
[1772717030160,10.9373291,91.43,91.373,3.69383402]
[1772717030455,0.93537561,91.429,91.374,0.93796295]
[1772717031540,1.21969875,91.428,91.374,0.93796295]
[1772717031740,0.93537561,91.427,91.374,0.93796295]
[1772717032349,0.93537561,91.425,91.375,10.94391244]
[1772717032863,0.93537561,91.425,91.375,11.88187539]
[1772717033257,10.83742892,91.43,91.364,27.36291732]
[1772717033258,0.93537561,91.437,91.376,0.93796295]
[1772717033444,0.93537561,91.435,91.376,0.93796295]
[1772717033948,0.93537561,91.434,91.376,0.93796295]
[1772717034146,0.93537561,91.429,91.376,0.93796295]
[1772717034346,0.93537561,91.428,91.376,0.93796295]
[1772717034547,0.93537561,91.427,91.376,0.93796295]
[1772717035868,10.93780762,91.426,91.377,10.94367291]
[1772717036077,0.93537561,91.425,91.378,0.93796295]
[1772717036361,0.93537561,91.446,91.38,0.93796295]
[1772717036560,0.93537561,91.446,91.382,0.93796295]
[1772717036754,0.93537561,91.446,91.382,0.28432314]
[1772717036956,0.93537561,91.446,91.384,0.93796295]
[1772717037948,0.93537561,91.446,91.379,30.5]
[1772717037949,0.93537561,91.439,91.385,11.88067783]
[1772717038148,0.93537561,91.437,91.385,11.88067783]
[1772717038375,0.93537561,91.437,91.386,0.93796295]
[1772717040268,10.9356546,91.444,91.388,0.93796295]
[1772717040467,6.82467772,91.448,91.388,0.93796295]
[1772717040468,6.82467772,91.448,91.393,0.93796295]
[1772717040647,11.86768276,91.472,91.395,0.93796295]
[1772717040953,0.93537561,91.471,91.397,0.93796295]
[1772717041265,0.93537561,91.471,91.399,1.08012452]
[1772717041470,0.93537561,91.471,91.4,1.08012452]
[1772717041664,0.93537561,91.471,91.402,1.08012452]
[1772717041963,0.93537561,91.469,91.407,3.69383402]
[1772717042165,0.93537561,91.469,91.408,0.28432314]
[1772717042461,0.93537561,91.469,91.412,0.93796295]
[1772717042666,0.28432314,91.459,91.402,0.93796295]
[1772717042970,0.93537561,91.458,91.402,0.93796295]
[1772717043266,0.93537561,91.448,91.393,10.94175055]
[1772717043445,0.93537561,91.439,91.392,0.93796295]
[1772717043642,1.21969875,91.438,91.392,0.93796295]
[1772717043870,0.93537561,91.437,91.389,10.94219405]
[1772717044070,38.2781399,91.436,91.389,10.94219405]
[1772717044261,0.93537561,91.435,91.389,10.94219405]
[1772717044953,0.93537561,91.419,91.374,0.93796295]
[1772717045173,1.21969875,91.418,91.365,10.94511027]
[1772717045468,1.21969875,91.418,91.364,0.93796295]
[1772717045469,0.93537561,91.417,91.364,0.93796295]
[1772717045668,0.93537561,91.417,91.36,10.94560557]
[1772717045969,0.93537561,91.417,91.361,0.93796295]
[1772717046167,0.93537561,91.415,91.363,0.93796295]
[1772717046369,0.93537561,91.415,91.35,0.28432314]
[1772717046370,0.93537561,91.409,91.358,10.94591268]
[1772717046558,0.93537561,91.409,91.359,0.93796295]
[1772717046759,0.93537561,91.409,91.36,0.93796295]
[1772717046954,0.93537561,91.409,91.362,0.93796295]
[1772717047156,0.93537561,91.409,91.362,1.22228609]
[1772717047356,10.93900411,91.416,91.364,0.93796295]
[1772717047778,10.93848656,91.421,91.364,0.93796295]
[1772717047952,10.93720948,91.431,91.364,0.93796295]
[1772717048247,0.93537561,91.44,91.364,0.93796295]
[1772717048448,10.93625258,91.439,91.37,0.93796295]
[1772717048761,10.93517627,91.448,91.374,0.93796295]
[1772717048956,10.93517627,91.448,91.376,1.22228609]
[1772717049174,11.87051501,91.449,91.379,0.93796295]
[1772717049354,27.33417337,91.461,91.382,1.08012452]
[1772717049355,10.93454221,91.454,91.382,1.08012452]
[1772717049554,10.93454221,91.454,91.355,54.65908347]
[1772717049555,0.93537561,91.453,91.374,0.93796295]
[1772717049753,0.93537561,91.439,91.374,0.93796295]
[1772717049951,0.93537561,91.437,91.374,0.93796295]
[1772717050173,0.93537561,91.429,91.374,0.93796295]
[1772717050471,0.93537561,91.427,91.376,0.93796295]
[1772717051964,0.93537561,91.427,91.371,0.93796295]
[1772717052267,0.93537561,91.418,91.37,14.91512689]
[1772717052459,0.93537561,91.415,91.37,14.91512689]
[1772717053173,0.93537561,91.415,91.37,3.97069595]
[1772717053565,0.93537561,91.415,91.371,10.94439154]
[1772717053953,0.93537561,91.415,91.37,3.97069595]
[1772717054254,0.93537561,91.407,91.37,3.97069595]
[1772717054461,0.93537561,91.407,91.334,0.28432314]
[1772717054462,0.93537561,91.399,91.317,0.93796295]
[1772717054673,0.93537561,91.389,91.317,1.22228609]
[1772717054876,0.93537561,91.389,91.319,3.69383402]
[1772717055181,0.93537561,91.389,91.321,1.22228609]
[1772717055360,0.93537561,91.389,91.323,0.93796295]
[1772717055563,0.93537561,91.389,91.324,0.93796295]
[1772717056175,0.93537561,91.368,91.314,0.93796295]
[1772717056378,0.93537561,91.368,91.304,27.38096145]
[1772717056379,0.93537561,91.368,91.316,0.93796295]
[1772717056561,0.93537561,91.366,91.316,0.93796295]
[1772717056760,0.93537561,91.366,91.317,11.88882642]
[1772717057063,0.93537561,91.359,91.31,11.15159413]
[1772717057259,1.21969875,91.358,91.31,0.2]
[1772717057469,0.93537561,91.357,91.31,0.2]
[1772717058067,0.93537561,91.348,91.31,0.2]
[1772717058661,10.83742892,91.33,91.273,0.93796295]
[1772717058868,0.98220628,91.328,91.275,0.97836377]
[1772717059079,10.83742892,91.34,91.275,0.97836377]
[1772717059280,0.98220628,91.338,91.275,0.97836377]
[1772717059468,0.98220628,91.338,91.277,0.97836377]
[1772717059772,38.31543454,91.347,91.263,0.97836377]
[1772717059773,0.98220628,91.309,91.263,0.97836377]
[1772717060384,1.26652942,91.309,91.263,0.97836377]
[1772717060671,0.98220628,91.299,91.263,0.97836377]
[1772717060877,0.98220628,91.298,91.24,0.1]
[1772717061081,213.56522499,91.307,91.192,27.41454573]
[1772717061082,0.28432314,91.249,91.22,1e-08]
[1772717061253,0.28432314,91.249,91.221,1.00268685]
[1772717061456,0.28432314,91.249,91.22,1e-08]
[1772717061457,4.82477569,91.261,91.222,1.00268685]
[1772717061665,5.711,91.262,91.222,1.00268685]
[1772717062266,10.83742892,91.24,91.187,1.00268685]
[1772717062476,10.83742892,91.25,91.189,1.00268685]
[1772717062683,10.83742892,91.25,91.191,1.00268685]
[1772717063257,4.82477569,91.256,91.191,1.00268685]
[1772717063454,0.28432314,91.249,91.191,1.00268685]
[1772717063857,0.28432314,91.239,91.191,1.00268685]
[1772717064057,0.28432314,91.249,91.191,1.00268685]
[1772717064485,17.61882567,91.255,91.191,1.00268685]
[1772717064781,17.61882567,91.255,91.194,1.14484842]
[1772717065081,10.95842374,91.254,91.194,1.14484842]
[1772717065759,17.61882567,91.255,91.194,1.14484842]
[1772717065955,17.61882567,91.255,91.196,1.14484842]
[1772717066568,17.61882567,91.255,91.196,1.28700999]
[1772717066882,16.61069503,91.255,91.203,0.97836377]
[1772717067078,17.59290131,91.255,91.204,1.12052534]
[1772717067284,0.98220628,91.253,91.204,0.97836377]
[1772717067868,16.61069503,91.255,91.204,0.97836377]
[1772717068071,27.56908513,91.255,91.204,0.97836377]
[1772717068482,0.94210374,91.254,91.204,0.97836377]
[1772717068782,16.61069503,91.255,91.206,0.97350536]
[1772717068981,11.90052748,91.254,91.206,0.97350536]
[1772717069189,0.94210374,91.253,91.206,0.97350536]
[1772717070177,16.61069503,91.255,91.206,0.97350536]
[1772717070487,10.95842374,91.254,91.206,0.97350536]
[1772717070662,10.95842374,91.254,91.208,0.97350536]
[1772717070861,0.94210374,91.249,91.188,0.97350536]
[1772717071275,16.61069503,91.255,91.191,0.97350536]
[1772717071472,16.61069503,91.255,91.192,1.11566693]
[1772717071673,8.62638354,91.255,91.233,0.97350536]